bitfinex/quotes_ETHUSD_20240730
["timestamp","ask_amount","ask_price","bid_price","bid_amount"]
[1722347242423,2.9862,3348.8,3348.6,0.20599448]
[1722347242731,2.98605,3348.9,3348.3,0.94557173]
[1722347242732,2.98626,3348.7,3348.3,0.94557173]
[1722347243049,2.98632,3348.6,3348.1,10.35672]
[1722347243174,2.98656,3348.4,3348.1,7.37]
[1722347243379,5.97313,3348.4,3348.2,0.20606764]
[1722347243581,5.97318,3348.3,3348.2,0.20606764]
[1722347243779,2.98712,3347.7,3347.2,7.37]
[1722347244080,2.3549,3348.6,3346.8,7.37]
[1722347244081,2.98752,3347.3,3346.8,7.37]
[1722347244333,3.157,3348.2,3346.8,7.37]
[1722347244334,2.98716,3347.7,3346.8,7.37]
[1722347244541,6.14369,3348.2,3347.1,2.9876]
[1722347244542,2.98721,3347.6,3347.1,2.9876]
[1722347244839,2.98721,3347.6,3346.9,2.98778]
[1722347244974,5.97451,3347.6,3346.9,2.98778]
[1722347245183,3.157,3348.2,3347.2,2.98752]
[1722347245386,2.98711,3347.8,3347.2,2.98756]
[1722347245586,2.98713,3347.7,3347.2,2.98756]
[1722347245932,2.98709,3347.8,3347.1,2.98759]
[1722347246254,2.98695,3347.9,3347.4,2.98739]
[1722347246442,2.98659,3348.3,3347.1,2.98757]
[1722347246761,2.98701,3347.9,3347.3,2.98748]
[1722347246900,2.98701,3347.9,3347.3,2.98742]
[1722347247249,2.98691,3348.0,3347.4,3.04712156]
[1722347247395,2.98694,3347.9,3347.4,3.04712156]
[1722347247602,2.98694,3347.9,3347.4,2.98738]
[1722347247831,2.98694,3347.9,3347.3,2.98747]
[1722347248147,2.98694,3347.9,3347.1,2.98759]
[1722347248148,2.98721,3347.6,3347.1,2.98759]
[1722347248315,2.9872,3347.7,3346.9,2.98783]
[1722347248521,2.98757,3347.3,3346.8,7.37]
[1722347248703,2.98767,3347.1,3346.8,7.37]
[1722347248911,2.98761,3347.2,3346.8,7.37]
[1722347249112,2.98756,3347.3,3346.8,7.37]
[1722347249447,6.157,3348.2,3347.3,2.98744]
[1722347249749,6.157,3348.2,3347.3,2.98748]
[1722347249750,5.97404,3347.9,3347.3,2.98748]
[1722347249913,2.987,3347.9,3347.3,2.98748]
[1722347250315,3.0,3348.2,3347.1,2.98758]
[1722347250548,2.9868,3348.1,3347.2,0.05974083]
[1722347250710,2.9869,3348.0,3347.5,2.9873]
[1722347250915,12.60261564,3349.1,3347.7,2.98707]
[1722347250916,2.98665,3348.3,3347.7,2.98707]
[1722347251137,2.98668,3348.2,3347.6,2.98721]
[1722347251448,2.98678,3348.1,3347.6,2.98721]
[1722347251648,2.98717,3347.7,3347.0,2.98769]
[1722347251814,2.98703,3347.8,3347.2,2.98752]
[1722347252011,2.98687,3348.0,3347.5,2.98725]
[1722347252207,2.98673,3348.2,3347.1,3.0]
[1722347252407,5.97346,3348.2,3347.7,2.98711]
[1722347252694,5.97346,3348.2,3347.6,2.98721]
[1722347252695,2.98677,3348.1,3347.6,2.98721]
[1722347252958,2.98638,3348.6,3348.0,2.98684]
[1722347253248,2.98618,3348.8,3348.2,2.98662]
[1722347253943,2.98632,3348.6,3348.1,3.04648726]
[1722347254143,2.98632,3348.6,3347.8,2.4213]
[1722347254144,2.98627,3348.7,3348.2,2.98666]
[1722347254327,2.98637,3348.6,3348.0,2.98677]
[1722347254670,2.0086957,3348.9,3348.1,2.98671]
[1722347255016,2.0086957,3348.9,3348.0,4.17629673]
[1722347255017,2.98638,3348.6,3348.0,4.17629673]
[1722347255329,2.98615,3348.8,3348.1,2.98669]
[1722347255860,3.157,3348.7,3347.7,7.37]
[1722347256183,2.9871,3347.8,3347.2,2.98755]
[1722347256494,2.98728,3347.6,3347.0,10.35769]
[1722347256760,2.98728,3347.6,3347.0,10.35767]
[1722347256761,5.97455,3347.6,3347.0,10.35767]
[1722347256922,2.98727,3347.6,3347.0,10.35767]
[1722347257254,3.157,3348.2,3347.0,7.37]
[1722347257429,2.98706,3347.8,3347.0,7.37]
[1722347257629,2.98744,3347.4,3347.0,7.37]
[1722347257836,2.98745,3347.4,3347.0,7.37]
[1722347258023,2.98755,3347.3,3347.0,7.37]
[1722347258224,3.0,3348.1,3347.0,7.37]
[1722347258225,2.98737,3347.5,3347.1,0.20660551]
[1722347258555,2.98746,3347.4,3347.0,7.37]
[1722347258755,2.98735,3347.5,3347.0,7.37]
[1722347258957,2.98744,3347.4,3347.1,0.20660551]
[1722347259164,2.98744,3347.4,3347.0,7.37]
[1722347259333,2.98766,3347.1,3347.0,7.37]
[1722347259538,2.98781,3347.0,3346.4,10.35823]
[1722347259733,2.98786,3346.9,3346.4,10.35823]
[1722347260282,2.98788,3346.9,3346.4,7.37]
[1722347261075,2.98785,3346.9,3346.4,7.37]
[1722347261225,2.98789,3346.9,3346.4,7.37]
[1722347261425,2.98811,3346.6,3346.4,7.37]
[1722347261856,2.98797,3346.8,3346.4,7.37]
[1722347262053,2.9878,3347.0,3346.4,10.35824]
[1722347262257,2.9878,3347.0,3346.5,2.98813]
[1722347262462,2.98781,3347.0,3346.4,10.35823]
[1722347262671,2.98798,3346.8,3346.2,2.9884]
[1722347262934,2.98798,3346.8,3346.2,2.98846]
[1722347263365,2.98791,3346.9,3346.4,2.98823]
[1722347263680,2.98808,3346.7,3346.0,2.98858]
[1722347263969,2.98817,3346.6,3346.1,2.9885]
[1722347264185,2.98828,3346.5,3345.9,5.2686]
[1722347264382,2.98838,3346.3,3345.6,2.98895]
[1722347264585,6.1446,3347.2,3345.6,2.98895]
[1722347264586,2.98852,3346.2,3345.6,2.98895]
[1722347264803,2.98852,3346.2,3345.7,2.98887]
[1722347264959,2.98858,3346.1,3345.6,2.98899]
[1722347265345,2.98807,3346.7,3345.5,7.37]
[1722347265346,2.2912,3346.5,3345.5,7.37]
[1722347265542,3.157,3346.2,3344.9,2.98957]
[1722347265859,2.98897,3345.7,3344.9,2.98954]
[1722347266041,2.9888,3345.9,3345.1,2.98936]
[1722347266246,2.98908,3345.6,3344.9,2.98956]
[1722347266444,2.98891,3345.7,3345.1,2.98942]
[1722347266681,2.98891,3345.7,3345.2,2.98935]
[1722347266986,2.98876,3345.9,3345.3,2.98924]
[1722347267190,0.6707,3346.1,3345.2,0.05978112]
[1722347267372,2.98899,3345.7,3345.1,2.98939]
[1722347267577,2.98905,3345.6,3344.9,2.98954]
[1722347267882,2.98914,3345.5,3344.8,2.98963]
[1722347268121,2.98927,3345.3,3344.8,2.98963]
[1722347268596,2.98893,3345.7,3345.1,2.98937]
[1722347268909,2.98893,3345.7,3345.1,2.98938]
[1722347269041,2.98877,3345.9,3344.4,2.99003]
[1722347269247,2.9887,3346.0,3345.4,2.98911]
[1722347269681,2.98874,3345.9,3345.4,2.98911]
[1722347269948,2.98862,3346.1,3345.5,2.98903]
[1722347270148,2.98862,3346.1,3345.3,0.05977896]
[1722347270357,2.98882,3345.8,3345.2,2.98929]
[1722347270545,2.98871,3346.0,3345.4,2.98915]
[1722347270749,2.98871,3346.0,3345.4,5.97827]
[1722347270969,5.98842,3346.3,3345.6,2.98892]
[1722347271279,2.98864,3346.0,3345.5,2.98901]
[1722347271654,2.98861,3346.1,3345.5,2.98901]
[1722347271655,1.127962,3346.2,3345.5,2.98901]
[1722347271893,1.127962,3346.2,3345.6,2.98899]
[1722347271894,2.98856,3346.1,3345.6,2.98899]
[1722347272044,2.98856,3346.1,3345.5,0.05977435]
[1722347272244,2.98856,3346.1,3345.5,2.98907]
[1722347272500,4.116432,3346.2,3345.7,2.98886]
[1722347272705,2.98856,3346.1,3345.5,3.04877435]
[1722347272900,2.98856,3346.1,3345.5,6.03779435]
[1722347273191,2.98865,3346.0,3345.6,0.20803414]
[1722347273408,3.0,3346.3,3345.6,0.20803414]
[1722347273607,2.98852,3346.2,3345.7,2.98882]
[1722347274042,2.98852,3346.2,3345.8,0.20796618]
[1722347274246,2.98865,3346.0,3345.8,0.20796618]
[1722347274513,2.98873,3345.9,3345.8,0.20796618]
[1722347274645,3.886367,3346.0,3345.3,2.9892]
[1722347274845,2.98874,3345.9,3345.1,2.2619]
[1722347275157,2.98884,3345.8,3345.2,2.9893]
[1722347275388,2.98884,3345.8,3345.3,0.20813608]
[1722347275707,2.98884,3345.8,3345.3,2.98926]
[1722347275909,2.98884,3345.8,3345.4,0.2081021]
[1722347276113,2.98865,3346.0,3345.4,3.1972521]
[1722347276277,5.97736,3346.0,3345.4,3.1972521]
[1722347276477,2.98877,3345.9,3345.4,0.2081021]
[1722347276803,2.98865,3346.0,3345.1,5.25128]
[1722347277114,2.98865,3346.0,3345.5,0.20806812]
[1722347277410,6.14551,3346.2,3345.6,3.19702414]
[1722347277612,2.98856,3346.1,3345.6,3.19702414]
[1722347277779,2.98873,3345.9,3345.6,0.20803414]
[1722347277982,2.98873,3345.9,3345.4,2.98912]
[1722347278165,2.98882,3345.8,3345.5,0.20806812]
[1722347278516,2.98882,3345.8,3345.3,2.98926]
[1722347278812,2.98882,3345.8,3345.2,3.814428]
[1722347278955,2.98882,3345.8,3345.4,0.2081021]
[1722347279178,2.98882,3345.8,3345.3,2.98923]
[1722347279382,2.98882,3345.8,3345.4,0.2081021]
[1722347279800,2.98886,3345.8,3345.4,0.2081021]
[1722347280333,2.98873,3345.9,3345.4,2.98917]
[1722347280539,2.98873,3345.9,3345.5,0.20867773]
[1722347280994,3.157,3346.2,3345.5,0.20867773]
[1722347280995,6.14551,3346.2,3345.5,0.20867773]
[1722347281182,2.98862,3346.1,3345.6,2.98896]
[1722347281385,5.98841,3346.3,3345.7,0.20860977]
[1722347281585,3.0,3346.3,3346.0,2.98859]
[1722347281830,0.31268478,3346.7,3346.2,2.98846]
[1722347282145,4.9963857,3347.1,3346.3,3.04807163]
[1722347282287,2.98802,3346.7,3346.3,0.20835649]
[1722347282490,2.98793,3346.8,3346.3,3.25646663]
[1722347282684,4.9964157,3347.1,3346.4,2.98828]
[1722347282970,2.98811,3346.6,3346.1,2.3633]
[1722347283170,2.98815,3346.6,3346.2,0.20819268]
[1722347283375,4.9963857,3347.1,3346.2,2.98841]
[1722347283542,2.0086957,3347.1,3346.4,2.98824]
[1722347283746,2.0086957,3347.1,3346.5,2.98817]
[1722347283962,4.9964157,3347.1,3346.5,3.0479366]
[1722347284192,4.9964157,3347.1,3346.6,0.20805683]
[1722347284485,4.9963757,3347.1,3346.6,0.20805683]
[1722347284625,2.80708527,3347.1,3346.6,0.20805683]
[1722347284984,2.80708527,3347.1,3345.7,10.35888]
[1722347284985,2.98789,3346.9,3346.3,2.98834]
[1722347285140,4.9964057,3347.1,3346.4,3.19618964]
[1722347285480,2.98793,3346.8,3346.4,0.20798964]
[1722347285624,2.98797,3346.8,3346.4,0.20798964]
[1722347285825,4.9964357,3347.1,3346.3,2.9883]
[1722347286130,2.98788,3346.9,3346.5,0.20795568]
[1722347286490,2.0086957,3347.1,3346.6,0.20792172]
[1722347286786,4.9963757,3347.1,3346.6,0.20792172]
[1722347286932,2.0086957,3347.1,3346.6,0.20792172]
[1722347287133,4.9964057,3347.1,3346.6,0.20792172]
[1722347287338,7.9841457,3347.1,3346.6,0.20792172]
[1722347287548,2.98775,3347.0,3346.6,0.20792172]
[1722347287767,2.0086957,3347.1,3346.6,3.19600172]
[1722347288143,2.0086957,3347.1,3346.7,0.05975967]
[1722347288345,9.157,3347.7,3346.7,0.05975967]
[1722347288346,5.98719,3347.7,3347.1,2.9876]
[1722347288572,5.98719,3347.7,3347.0,2.98774]
[1722347288872,5.98719,3347.7,3347.1,3.19524299]
[1722347289078,5.98719,3347.7,3347.1,0.20766299]
[1722347289246,5.98719,3347.7,3347.1,3.19525299]
[1722347289427,2.98731,3347.5,3347.0,2.98773]
[1722347289625,2.98731,3347.5,3347.2,0.20762904]
[1722347289826,2.98748,3347.3,3347.1,0.20766299]
[1722347290076,2.98748,3347.3,3346.8,2.98792]
[1722347290382,2.98733,3347.5,3346.9,2.98783]
[1722347290632,5.98717,3347.7,3347.0,2.98768]
[1722347290924,3.0,3347.7,3347.2,2.98748]
[1722347291095,3.0,3347.7,3347.3,2.98741]
[1722347291283,3.0,3347.7,3347.0,2.98769]
[1722347291478,5.98712,3347.7,3347.0,2.98769]
[1722347291680,2.98726,3347.6,3347.0,2.98769]
[1722347291931,3.0,3347.7,3347.2,2.98751]
[1722347293134,3.0,3347.7,3347.2,3.04725378]
[1722347293340,3.0,3347.7,3347.4,2.98738]
[1722347293682,3.0,3347.7,3347.2,6.03474378]
[1722347293881,3.0,3347.7,3347.2,5.975]
[1722347294363,2.98722,3347.6,3347.0,2.98768]
[1722347294810,6.157,3347.7,3346.8,7.37]
[1722347295015,2.98768,3347.1,3346.8,7.37]
[1722347295463,2.98783,3346.9,3346.8,7.37]
[1722347295624,2.98783,3346.9,3345.9,14.7935]
[1722347295625,5.97615,3346.7,3346.2,2.98844]
[1722347295829,6.14459,3347.2,3346.1,2.98855]
[1722347296169,2.98784,3346.9,3346.3,0.2072987]
[1722347296456,3.157,3347.2,3346.1,2.98849]
[1722347296457,2.98806,3346.7,3346.1,2.98849]
[1722347296781,2.98788,3346.9,3346.4,2.98823]
[1722347296967,2.98788,3346.9,3346.3,2.98837]
[1722347296968,2.98793,3346.8,3346.3,2.98837]
[1722347297125,2.98793,3346.8,3346.5,0.20720442]
[1722347297480,2.98871,3346.0,3345.5,7.37]
[1722347297756,2.98871,3346.0,3345.4,2.3229]
[1722347297757,2.98877,3345.9,3345.4,2.98917]
[1722347297959,2.9886,3346.1,3345.4,2.98911]
[1722347298160,2.98836,3346.4,3345.7,2.98886]
[1722347298359,2.98861,3346.1,3345.5,2.98902]
[1722347298925,3.157,3346.2,3345.1,10.35938]
[1722347299130,2.98889,3345.8,3345.1,7.37]
[1722347299422,2.98909,3345.5,3345.1,7.37]
[1722347299722,2.98876,3345.9,3345.1,7.37]
[1722347299931,2.98896,3345.7,3345.1,7.37]
[1722347300145,5.97796,3345.7,3345.1,7.37]
[1722347300346,2.98897,3345.7,3345.1,7.37]
[1722347300510,2.98914,3345.5,3345.1,7.37]
[1722347300712,2.98895,3345.7,3345.1,7.37]
[1722347300924,3.157,3346.2,3345.1,7.37]
[1722347301136,2.98906,3345.6,3345.1,7.37]
[1722347301378,5.97812,3345.6,3345.1,7.37]
[1722347301517,2.98906,3345.6,3345.1,7.37]
[1722347301719,2.98912,3345.5,3345.1,7.37]
[1722347302216,2.98882,3345.8,3345.1,7.37]
[1722347302446,2.98933,3345.3,3345.1,7.37]
[1722347302643,2.98933,3345.3,3344.7,2.98976]
[1722347303115,2.98913,3345.5,3344.8,2.98971]
[1722347303116,5.9783,3345.5,3344.8,2.98971]
[1722347303379,5.9783,3345.5,3344.9,2.98962]
[1722347303380,5.97829,3345.5,3344.9,2.98962]
[1722347303666,2.98913,3345.5,3345.0,0.20879822]
[1722347303957,2.98915,3345.5,3345.0,0.20879822]
[1722347304468,2.98887,3345.8,3345.2,2.98929]
[1722347304665,10.45851,3346.2,3345.4,2.98911]
[1722347304966,10.45851,3346.2,3345.3,0.38556377]
[1722347304967,2.98862,3346.1,3345.5,2.98908]
[1722347305117,2.98866,3346.0,3345.5,0.20862828]
[1722347305316,2.98851,3346.2,3345.6,2.98899]
[1722347305791,2.98865,3346.0,3345.7,0.20856032]
[1722347306077,2.98855,3346.2,3345.5,0.65726821]
[1722347306211,2.98855,3346.2,3345.8,0.20852634]
[1722347306212,2.98851,3346.2,3345.8,0.20852634]
[1722347306407,2.98851,3346.2,3345.6,2.98893]
[1722347306647,2.98857,3346.1,3345.7,0.20856032]
[1722347307010,2.98865,3346.0,3345.5,3.04881447]
[1722347307214,2.98869,3346.0,3345.6,0.20649721]
[1722347307561,0.59772,3346.0,3345.0,2.98953]
[1722347307766,2.98909,3345.5,3345.0,2.98953]
[1722347308212,2.98891,3345.7,3345.1,2.98939]
[1722347308420,2.9894,3345.2,3344.6,12.82534]
[1722347308735,2.9896,3345.0,3344.4,2.99002]
[1722347309048,5.97921,3345.0,3344.4,3.517672]
[1722347309257,2.98959,3345.0,3344.4,3.517672]
[1722347310185,2.98959,3345.0,3344.4,3.517652]
[1722347310337,2.98959,3345.0,3344.5,2.98997]
[1722347310771,2.98959,3345.0,3344.4,0.527652]
[1722347310945,2.98976,3344.8,3344.2,2.99518]
[1722347311141,2.98976,3344.8,3344.3,3.0]
[1722347311988,2.98976,3344.8,3344.2,3.005]
[1722347312168,2.98976,3344.8,3344.2,2.99523]
[1722347312890,2.98956,3345.0,3344.3,2.99015]
[1722347313073,2.98956,3345.0,3344.4,2.99006]
[1722347313319,2.98921,3345.4,3344.6,2.98983]
[1722347313519,2.98941,3345.2,3344.5,3.04976556]
[1722347313724,2.98967,3344.9,3344.3,2.99011]
[1722347313927,2.98972,3344.8,3344.3,2.99011]
[1722347314212,2.98967,3344.9,3344.2,0.005]
[1722347314213,2.9898,3344.7,3344.2,0.005]
[1722347314432,2.98997,3344.6,3344.2,0.005]
[1722347314735,2.99003,3344.5,3344.2,0.005]
[1722347314883,2.99,3344.5,3344.2,0.005]
[1722347315082,2.98982,3344.7,3344.2,0.005]
[1722347315454,5.98032,3344.3,3344.2,0.005]
[1722347316020,2.99002,3344.5,3344.2,0.005]
[1722347316227,2.99011,3344.4,3344.2,0.005]
[1722347316500,2.99016,3344.3,3344.2,0.005]
[1722347317326,5.98032,3344.3,3344.2,0.005]
[1722347317529,6.578352,3344.3,3344.2,0.005]
[1722347317734,2.99016,3344.3,3344.2,0.005]
[1722347317897,2.99,3344.5,3344.2,0.005]
[1722347318098,2.99016,3344.3,3344.2,0.005]
[1722347318337,5.98032,3344.3,3344.2,0.005]
[1722347318893,2.99016,3344.3,3344.2,0.005]
[1722347319103,2.99001,3344.5,3344.2,0.005]
[1722347319430,2.99016,3344.3,3344.2,0.005]
[1722347320150,2.99008,3344.4,3344.2,0.005]
[1722347320302,0.49987057,3344.5,3344.2,0.005]
[1722347320502,2.99016,3344.3,3344.2,0.005]
[1722347321416,2.99004,3344.5,3344.2,0.005]
[1722347321616,5.97969,3344.7,3344.2,0.005]
[1722347321812,2.98981,3344.7,3344.2,0.005]
[1722347322073,0.49985057,3344.7,3344.2,0.005]
[1722347322369,2.99016,3344.3,3344.2,0.005]
[1722347322582,0.49985057,3344.7,3344.2,0.005]
[1722347322583,2.99005,3344.5,3344.2,0.005]
[1722347322859,2.9898,3344.7,3344.2,0.005]
[1722347323083,2.0086957,3344.8,3344.2,2.99523]
[1722347323236,2.0086957,3344.8,3344.5,2.98993]
[1722347323440,2.0086957,3344.8,3344.3,0.55116337]
[1722347323733,2.0086957,3344.8,3344.6,2.98985]
[1722347323931,2.0086957,3344.8,3344.4,0.05979565]
[1722347323932,5.989,3345.6,3344.4,3.04984565]
[1722347324135,2.98909,3345.5,3345.0,2.98952]
[1722347324502,2.98932,3345.3,3344.8,2.9897]
[1722347324619,3.0,3345.6,3344.3,2.99014]
[1722347324821,2.98941,3345.2,3344.6,2.98983]
[1722347325061,3.0,3345.6,3344.4,1.281674]
[1722347325062,2.98949,3345.1,3344.4,1.281674]
[1722347325239,2.98949,3345.1,3344.6,2.98984]
[1722347325437,2.98954,3345.0,3344.4,1.281674]
[1722347325723,2.98949,3345.1,3344.5,2.98993]
[1722347325928,2.98953,3345.0,3344.5,2.98993]
[1722347326163,2.98953,3345.0,3344.4,4.271744]
[1722347326362,2.98953,3345.0,3344.5,2.98998]
[1722347326570,2.98953,3345.0,3344.4,1.281674]
[1722347326571,2.98967,3344.9,3344.4,1.281674]
[1722347326775,2.98941,3345.2,3344.5,2.98993]
[1722347326950,2.98921,3345.4,3344.5,2.98993]
[1722347326951,2.98935,3345.3,3344.6,2.98982]
[1722347327154,2.98935,3345.3,3344.8,2.9897]
[1722347327462,2.98941,3345.2,3344.5,0.50522073]
[1722347328059,2.9896,3345.0,3344.5,0.50522073]
[1722347328349,2.9896,3345.0,3344.4,2.99002]
[1722347328788,2.98937,3345.2,3344.4,2.99002]
[1722347328988,2.98945,3345.1,3344.6,2.98983]
[1722347330033,5.3581,3345.5,3344.9,2.98957]
[1722347330348,5.989,3345.6,3345.0,2.98948]
[1722347330707,2.98918,3345.4,3344.8,2.98965]
[1722347330888,3.0,3345.6,3344.7,2.98979]
[1722347331089,2.98932,3345.3,3344.7,2.98973]
[1722347331335,3.588019,3345.5,3344.5,10.35993]
[1722347331336,2.98913,3345.5,3344.5,7.37]
[1722347331594,2.98927,3345.3,3344.8,2.98966]
[1722347332433,2.98914,3345.5,3345.0,2.98953]
[1722347332653,2.98932,3345.3,3344.7,2.98976]
[1722347333251,2.98932,3345.3,3344.8,2.98966]
[1722347333537,2.98915,3345.5,3344.9,2.98955]
[1722347333692,2.98915,3345.5,3344.9,3.19667089]
[1722347334055,2.98915,3345.5,3344.9,0.20712089]
[1722347334056,2.98944,3345.1,3344.9,0.20712089]
[1722347334607,2.98944,3345.1,3345.0,0.20710998]
[1722347334807,2.98955,3345.0,3344.5,10.35997]
[1722347335053,3.587481,3345.0,3344.5,7.37]
[1722347335351,2.98976,3344.8,3344.6,0.20724597]
[1722347335655,2.98973,3344.8,3344.2,2.99517]
[1722347335895,2.98963,3344.9,3344.4,2.99006]
[1722347336105,3.587481,3345.0,3344.3,3.19747447]
[1722347336106,2.98972,3344.8,3344.3,3.19751447]
[1722347336314,2.98972,3344.8,3344.5,0.20729646]
[1722347336592,2.98989,3344.6,3344.4,0.20733046]
[1722347336779,2.99002,3344.5,3344.2,0.005]
[1722347337170,0.298972,3344.8,3344.2,0.005]
[1722347337349,2.99002,3344.5,3344.2,0.005]
[1722347337540,2.98986,3344.7,3344.2,0.005]
[1722347337948,2.98986,3344.7,3344.2,2.99524]
[1722347338374,2.98993,3344.6,3344.2,0.005]
[1722347338871,3.288692,3344.8,3344.2,2.9952]
[1722347338872,2.98982,3344.7,3344.2,2.9952]
[1722347339076,2.98998,3344.5,3344.2,0.005]
[1722347339578,2.99007,3344.4,3344.2,0.005]
[1722347339754,2.99016,3344.3,3344.2,0.005]
[1722347339953,3.588183,3344.3,3344.2,0.005]
[1722347340375,0.598023,3344.3,3344.2,0.005]
[1722347340589,2.99016,3344.3,3344.2,0.005]
[1722347340892,5.98032,3344.3,3344.2,0.005]
[1722347341062,2.99016,3344.3,3344.2,0.005]
[1722347341785,2.9899,3344.6,3344.2,0.005]
[1722347342103,2.369,3345.1,3344.4,2.99]
[1722347342104,2.98965,3344.9,3344.4,2.99]
[1722347342590,2.98975,3344.8,3344.2,0.005]
[1722347342950,2.98941,3345.2,3344.2,0.305027]
[1722347343151,2.98944,3345.1,3344.6,2.98989]
[1722347343427,10.736812,3345.5,3344.3,2.9901]
[1722347343573,2.98954,3345.0,3344.4,2.98998]
[1722347343768,2.98954,3345.0,3344.5,2.98996]
[1722347344162,2.98954,3345.0,3344.4,2.99006]
[1722347344486,2.98985,3344.7,3344.2,2.9952]
[1722347344736,3.288544,3345.0,3344.3,2.99011]
[1722347345020,2.98994,3344.6,3344.2,0.005]
[1722347345318,2.98999,3344.5,3344.2,0.005]
[1722347345662,2.98989,3344.6,3344.2,0.005]
[1722347345862,2.9898,3344.7,3344.2,0.005]
[1722347346507,2.98971,3344.8,3344.3,2.99015]
[1722347346666,2.98945,3345.1,3344.4,2.99001]
[1722347346976,2.98945,3345.1,3344.6,2.98989]
[1722347347185,2.98928,3345.3,3344.6,2.98982]
[1722347347386,2.98946,3345.1,3344.6,2.98982]
[1722347347776,2.98928,3345.3,3344.6,2.98982]
[1722347347976,2.98928,3345.3,3344.8,2.98967]
[1722347348421,10.45909,3345.5,3344.9,0.20737494]
[1722347348717,5.0086957,3345.6,3344.9,0.05978719]
[1722347348880,7.9977557,3345.6,3345.1,2.98944]
[1722347349076,2.98934,3345.3,3345.0,0.20734095]
[1722347349374,2.98934,3345.3,3344.5,5.31862]
[1722347349375,2.98933,3345.3,3344.5,5.31862]
[1722347349576,2.98935,3345.2,3345.1,0.20730696]
[1722347349804,2.98925,3345.4,3344.7,2.98975]
[1722347350014,2.98925,3345.4,3345.1,0.20730696]
[1722347350323,2.98925,3345.4,3344.5,3.161062]
[1722347350324,2.98922,3345.4,3345.2,0.20727297]
[1722347350815,2.98927,3345.3,3344.8,2.98964]
[1722347351281,2.98926,3345.3,3344.8,2.98964]
[1722347351608,2.98922,3345.4,3344.6,2.98983]
[1722347351609,2.98936,3345.2,3344.6,2.98982]
[1722347351814,3.587238,3345.2,3344.4,2.99002]
[1722347352019,2.369,3345.1,3344.2,2.99518]
[1722347352217,2.98989,3344.6,3344.2,0.005]
[1722347352393,2.98993,3344.6,3344.2,0.005]
[1722347352722,2.98963,3344.9,3344.2,2.99524]
[1722347353014,2.98988,3344.7,3344.2,0.005]
[1722347353413,2.98994,3344.6,3344.2,0.005]
[1722347353626,2.98978,3344.8,3344.2,2.99524]
[1722347353827,2.98978,3344.8,3344.2,5.98537]
[1722347353984,2.98986,3344.7,3344.2,0.005]
[1722347354346,2.98994,3344.6,3344.2,0.005]
[1722347354826,2.98947,3345.1,3344.4,2.99]
[1722347354997,3.50552163,3345.1,3344.4,2.99]
[1722347355396,3.50552163,3345.1,3344.2,0.005]
[1722347355397,2.98985,3344.7,3344.2,0.005]
[1722347355792,2.99009,3344.4,3344.2,0.005]
[1722347356649,2.98998,3344.5,3344.2,0.005]
[1722347356992,2.98985,3344.7,3344.2,0.005]
[1722347357294,5.87452163,3345.1,3344.2,0.005]
[1722347357494,2.9898,3344.7,3344.2,0.005]
[1722347357700,1.55166015,3345.0,3344.2,0.005]
[1722347358017,2.99016,3344.3,3344.2,0.005]
[1722347359643,2.98995,3344.6,3344.2,0.005]
[1722347359957,2.99012,3344.4,3344.2,0.005]
[1722347360122,2.99016,3344.3,3344.2,0.005]
[1722347360593,0.299012,3344.4,3344.2,0.005]
[1722347360729,2.99014,3344.4,3344.2,0.005]
[1722347361127,2.99016,3344.3,3344.2,0.005]
[1722347361368,2.99008,3344.4,3344.2,0.005]
[1722347361667,8.02,3344.9,3344.2,0.005]
[1722347361668,7.47,3344.9,3344.2,0.005]
[1722347361890,2.98994,3344.6,3344.2,0.005]
[1722347362027,7.47,3344.9,3344.2,0.005]
[1722347362224,2.98976,3344.8,3344.3,3.19098583]
[1722347362426,2.98976,3344.8,3344.3,0.20084583]
[1722347362673,10.45962,3344.9,3344.2,0.005]
[1722347363030,10.45962,3344.9,3344.3,3.19093583]
[1722347363252,13.44931,3344.9,3344.3,3.19093583]
[1722347363454,13.44931,3344.9,3344.4,0.20081183]
[1722347363634,5.97931,3344.9,3344.4,0.20081183]
[1722347364163,5.97931,3344.9,3344.3,2.99009]
[1722347364473,5.97931,3344.9,3344.4,0.20081183]
[1722347364684,2.88505163,3345.1,3344.2,0.005]
[1722347364832,2.98974,3344.8,3344.2,0.005]
[1722347365192,2.98993,3344.6,3344.5,0.20077782]
[1722347365481,2.9898,3344.7,3344.2,0.005]
[1722347365482,2.99016,3344.3,3344.2,0.005]
[1722347366063,2.99009,3344.4,3344.2,0.005]
[1722347367096,2.9899,3344.6,3344.2,0.005]
[1722347367854,2.98977,3344.8,3344.2,0.005]
[1722347368167,2.99007,3344.5,3344.2,0.005]
[1722347368580,2.99016,3344.3,3344.2,0.005]
[1722347368780,5.98032,3344.3,3344.2,0.005]
[1722347369168,2.99016,3344.3,3344.2,0.005]
[1722347369403,2.98995,3344.6,3344.2,0.005]
[1722347369598,1.33448216,3344.8,3344.2,0.005]
[1722347369599,2.9898,3344.7,3344.2,0.005]
[1722347369846,5.87451163,3345.1,3344.6,2.98983]
[1722347369847,2.98951,3345.1,3344.6,2.98983]
[1722347370001,2.98959,3345.0,3344.5,2.98993]
[1722347370205,2.9893,3345.3,3344.8,2.98965]
[1722347370528,2.98918,3345.4,3344.9,2.98955]